Cogmind - Beta 16.1 @@@ ROGUE MODE // 2026.02.17 @ 19:13:56 Player: Lennu Result: Destroyed by G-47 Trooper with Particle Gun Performance ------------- Evolutions (0) 0 Regions Visited (1) 200 Robots Destroyed (7) 35 Value Destroyed (49) 49 Prototype IDs (0) 0 Alien Tech Used (0) 0 Bonus (0) 0 TOTAL SCORE: 284 Bonus ------- None Cogmind --------- Core Integrity 0/250 Matter 205/300 Energy 83/125 System Corruption 2% Temperature Cool (9) Movement Core (150) Ox2 Location -10/Materials Parts ------- > --- POWER (1) -------- Light Ion Engine > --- PROPULSION (2) --- (None) > --- UTILITY (2) ------ Visual Processing Unit Power Shielding > --- WEAPON (2) ------- Assault Rifle Light Assault Rifle > --- INVENTORY (5) ---- High-capacity Matter Pod (0) Peak State ------------ > --- POWER ------------ Ion Engine > --- PROPULSION ------- Light Treads Light Treads > --- UTILITY ---------- Medium Storage Unit Visual Processing Unit > --- WEAPON ----------- Light Assault Rifle Grenade Launcher > --- INVENTORY -------- Light Ion Engine Light Ion Engine Light Ion Engine Aluminum Leg Aluminum Leg Large Storage Unit Small Matter Pod Power Shielding Medium Laser Light Assault Rifle [Rating: 9] Favorites ----------- Power Ion Engine Engine Ion Engine Propulsion Light Treads Treads Light Treads Leg Aluminum Leg Utility Visual Processing Unit Storage Small Storage Unit Processor Visual Processing Unit Protection Power Shielding Weapon Light Assault Rifle Ballistic Gun Light Assault Rifle Launcher Grenade Launcher Build | -11 -10 ------- Run | Yrd Mat Slots Evolved . | . . Power . | . . Propulsion . | . . Utility . | . . Weapon . | . . Parts Attached 18 | 7 11 Power 3 | 2 1 Engine 3 | 2 1 Core . | . . Reactor . | . . Propulsion 3 | 2 1 Treads 2 | 2 . Leg 1 | . 1 Wheel . | . . Hover . | . . Flight . | . . Utility 6 | 1 5 Device . | . . Storage 4 | 1 3 Processor 1 | . 1 Hackware . | . . Protection 1 | . 1 Artifact . | . . Weapon 6 | 2 4 Energy Gun . | . . Energy Cannon . | . . Ballistic Gun 5 | 2 3 Ballistic Cannon . | . . Launcher 1 | . 1 Special Weapon . | . . Impact Weapon . | . . Slashing Weapon . | . . Piercing Weapon . | . . Special Melee Weapon . | . . Unidentified Prototypes . | . . Parts Lost 8 | . 8 Power 2 | . 2 Propulsion 3 | . 3 Utility . | . . Weapon 3 | . 3 Highest Loss Streak 6 | . 6 To Critical Strikes . | . . Average Backups 5 | 2 6 Power 1 | . 1 Propulsion 1 | . 1 Utility 1 | . 1 Weapon 2 | 1 2 Tool/Special . | . . Unused Backups 7 | . 7 Power 3 | . 3 Propulsion 1 | . 1 Utility 2 | . 2 Weapon 1 | . 1 Tool/Special . | . . Average Slot Usage (%) 83 | . 83 Engine 11 | . 11 Treads 22 | . 22 Leg 2 | . 2 Storage 11 | . 11 Processor 9 | . 9 Ballistic Gun 21 | . 21 Launcher 4 | . 4 Peak Build Rating 9 | 6 9 Average Rating 6 | 4 6 On Entrance 3 | . 6 Avg Prop Armor Cover (%) 17 | . 17 Naked Turns . | . . Heaviest Build 90 | 12 90 Greatest Support 40 | 40 40 Greatest Overweight (x) 3 | 3 2 Average Overweight (x) . | . . Largest Inventory Capacity 25 | 8 25 Average Capacity 9 | 7 10 Most Carried 11 | 5 11 Average Carried 5 | 2 6 Final Capacity 8 | 8 5 Final Carried 4 | 4 1 Class Distribution -------------------- 100% | Mutant Dominant Class ---------------- Mutant | -10/Materials Resources | -11 -10 ----------- Run | Yrd Mat Matter Collected 398 | 202 196 Remotely . | . . Salvage Created 85 | . 85 Parts 10 | . 10 Haulers Intercepted . | . . Recyclers Shooed 1 | . 1 Parts Field Recycled . | . . Retrieved Matter . | . . Parts Self-Destructed . | . . Prevented . | . . Parts Restored . | . . Kills | -11 -10 ------- Run | Yrd Mat Combat Hostiles Destroyed 3 | . 3 AOE 3 | . 3 Classes Destroyed 3 | 1 2 Worker 3 | 1 2 Watcher 1 | . 1 Swarmer 3 | . 3 Best Kill Streak 4 | 1 4 Combat Bots Only 3 | . 3 Max Kills in Single Turn 3 | 1 3 Gunslinging . | . . Exploded 3 | . 3 Melee . | . . Uniques/NPCs Destroyed . | . . Combat | -11 -10 -------- Run | Yrd Mat Hostile Shots Fired 98 | . 98 Missed 26 | . 26 Hits 72 | . 72 Projectile 72 | . 72 Critical Strikes 2 | . 2 Damage Taken 1142 | . 1142 Core 254 | . 254 Absorbed by Shields . | . . Redirected to Shielding 5 | . 5 Core Remaining (%) 100 | 100 . Volleys Fired 35 | 1 34 Largest 2 | 1 2 Hottest 50 | 20 50 Shots Fired 45 | 1 44 Gun 41 | 1 40 Cannon . | . . Launcher 4 | . 4 Special . | . . Kinetic 41 | 1 40 Thermal . | . . Explosive 4 | . 4 Electromagnetic . | . . Robot Hit Streak 5 | . 5 Robot Miss Streak 1 | 1 1 Penetration Max . | . . Secondary Targets . | . . Shots Hit Robots 15 | . 15 Core Hits 16 | 4 12 Critical Kills . | . . Critical Parts Destroyed . | . . Critical Strikes . | . . Melee Attacks . | . . Impact . | . . Slashing . | . . Piercing . | . . Sneak Attacks . | . . Combat Hostiles . | . . Follow-up Attacks . | . . Damage Inflicted 534 | 22 512 Guns 183 | . 183 Cannons . | . . Explosions 267 | . 267 Melee . | . . Ramming 84 | 22 62 Kinetic 183 | . 183 Thermal . | . . Explosive 267 | . 267 Electromagnetic . | . . Impact . | . . Slashing . | . . Piercing . | . . Highest Corruption 2 | . 2 Average Corruption 2 | . 2 Corruption Purged . | . . Corruption Blocked . | . . Effects 1 | . 1 Matter Fused 1 | . 1 Overload Shots . | . . Overflow Damage 3 | . 3 Projectiles . | . . Explosions 3 | . 3 Melee . | . . Knockbacks . | . . Impact . | . . Kinetic . | . . Secondary . | . . Self-Inflicted Damage 92 | . 92 Shots 2 | . 2 Rammed 18 | 6 12 Targets Rammed 27 | 7 20 Kicked 8 | . 8 Crushed 1 | 1 . Highest Temperature 22 | . 22 Average Temperature 6 | . 6 Received Heat Transfer 576 | . 576 Siege Activations . | . . Martial Activations . | . . Shielding Activations . | . . Robots Disrupted . | . . Combat Hostiles . | . . Robots Corrupted . | . . Combat Hostiles . | . . Parts Fried . | . . Impact Corruptions . | . . Robots Melted . | . . Combat Hostiles . | . . Parts Melted . | . . Heat Transferred . | . . Parts Sabotaged . | . . Parts Stolen . | . . Parts Stripped . | . . Power Chain Reactions . | . . Alert | -11 -10 ------- Run | Yrd Mat Maximum Alert Level . | . . Low Security (%) 100 | 100 100 Level 1 . | . . Level 2 . | . . Level 3 . | . . Level 4 . | . . Level 5 . | . . High Security . | . . Max Security . | . . Peak Influence 96 | 5 96 Initial . | . . Average 15 | . 21 Influence Increases 187 | 5 182 Destroy 0b10 Robot/C 60 | . 60 Destroy 0b10 Robot/NC 20 | 5 15 Destroy Leader 12 | . 12 Destroy Structure 35 | . 35 Lose Combat Pursuer 60 | . 60 Influence Decreases 177 | 5 172 Time Decay 149 | 5 144 Lost Part 28 | . 28 Squads Dispatched 1 | . 1 Investigation . | . . Extermination . | . . Reinforcement 1 | . 1 Assault . | . . Garrison . | . . Intercept . | . . Searches Triggered . | . . Construction Impeded . | . . Haulers Reinforced . | . . Active Scanning Responses . | . . Cargo Convoy Interrupts . | . . Stealth | -11 -10 --------- Run | Yrd Mat Distress Signals 1 | . 1 Communications Jammed . | . . Distress Signals . | . . Times Spotted 14 | . 14 Peak Tracking Total 5 | . 5 Tactical Retreats 1 | . 1 Traps | -11 -10 ------- Run | Yrd Mat Traps Triggered 3 | . 3 Indirectly . | . . Trap Hack Attempts . | . . Triggered . | . . Disarmed . | . . Reprogrammed . | . . Reused . | . . Traps Extracted . | . . Installed . | . . Triggered . | . . Machines | -11 -10 ---------- Run | Yrd Mat Machines Disabled . | . . Max in Single Turn . | . . Machines Repaired . | . . Machines Dismantled . | . . Machines Sabotaged . | . . Overloaded Fab Kills . | . . Hacking | -11 -10 --------- Run | Yrd Mat Machines Accessed . | . . Terminals . | . . Fabricators . | . . Repair Stations . | . . Recycling Units . | . . Scanalyzers . | . . Garrison Access . | . . Total Hacks . | . . Successful . | . . Failed . | . . Catastrophic . | . . Database Lockouts . | . . Manual . | . . Terminals . | . . Fabricators . | . . Repair Stations . | . . Recycling Units . | . . Scanalyzers . | . . Garrison Access . | . . Terminal Hacks . | . . Fabricator Hacks . | . . Repair Station Hacks . | . . Recycling Unit Hacks . | . . Scanalyzer . | . . Garrison Access Hacks . | . . Unauthorized Hacks . | . . Terminals . | . . Fabricators . | . . Repair Stations . | . . Recycling Units . | . . Scanalyzers . | . . Garrison Access . | . . Data Cores Recovered . | . . Used . | . . Hacking Detections . | . . Full Trace Events . | . . Feedback Events . | . . Feedback Blocked . | . . Robot Schematics Acquired . | . . Robots Built . | . . Authchips . | . . Time . | . . Total Robot Build Rating . | . . Part Schematics Acquired . | . . Parts Built . | . . Authchips . | . . Time . | . . Total Part Build Rating . | . . Part Studies Acquired . | . . Parts Repaired . | . . Time . | . . Parts Recycled . | . . Recycled Matter . | . . Retrieved Matter . | . . Retrieved Components . | . . Parts Scanalyzed . | . . Part Schematics Acquired . | . . Parts Damaged . | . . Bothacking | -11 -10 ------------ Run | Yrd Mat Used RIF Installer . | . . Robots Hacked . | . . Non-combat . | . . Combat . | . . Robot Hacks Applied . | . . Relay Couplers Released . | . . Fabnet Peak Effective % . | . . Robots Rewired . | . . Allies Hacked . | . . Hacks Repelled . | . . Allies | -11 -10 -------- Run | Yrd Mat Total Allies . | . . Largest Group . | . . Highest-Rated Group . | . . Highest-Rated Ally . | . . Total Orders . | . . Ally Attacks . | . . Total Damage . | . . Kills . | . . Allies Corrupted . | . . Allies Melted . | . . Intel | -11 -10 ------- Run | Yrd Mat Active Infowar (turns) 402 | . 402 Optics 402 | . 402 Robot Analysis Total . | . . Derelict Logs Recovered . | . . Drone Launches . | . . Drone Recoveries . | . . Exploration | -11 -10 ------------- Run | Yrd Mat Turns Passed 841 | 217 624 Spaces Moved 440 | 120 320 Core 84 | 17 67 Treads 356 | 103 253 Legs . | . . Wheels . | . . Hover . | . . Flight . | . . Fastest Speed 50 | 50 50 Average Speed 148 | 159 144 Slowest Speed 320 | 200 320 Overloaded Moves . | . . Propulsion Burnouts . | . . Robots Hopped . | . . Potential Cave-ins . | . . Cave-ins Triggered . | . . Exploration Rate (%) 27 | 4 51 Regions Visited 1 Branch Regions . Pre-discovered Areas . | . . Known Exits Taken . | . . Unknown Exits Taken 1 | 1 . Scrap Searched . | . . Spaces Dug . | . . Terrain Destroyed 31 | . 31 Melee . | . . Projectile . | . . AOE 31 | . 31 Terrain Rammed . | . . Walls Destroyed . | . . Machines Disabled . | . . Actions | -11 -10 --------- Run | Yrd Mat Total 572 | 138 434 Wait 19 | . 19 Move 439 | 119 320 Hop . | . . Pick Up 17 | 4 13 Fast Attach 7 | 5 2 Attach 9 | 1 8 Detach . | . . Swap 10 | 1 9 Drop 9 | . 9 Fire 35 | 1 34 Melee . | . . Ram 10 | . 10 Kick 8 | . 8 Crush 9 | 7 2 Escape Stasis . | . . Rewire . | . . Trap . | . . Miscellaneous . | . . Route ------- -11/Scrapyard -10/Materials (discovered 1 exit: [*Mat]) History --------- Turn | Location | Event 17 | -11/Scrapyard | Discovered new exit (range 16) 218 | -11/Scrapyard | Entered Materials 306 | -10/Materials | Build established: Mutant 327 | -10/Materials | Discovered new exit (range 16) 731 | -10/Materials | Core integrity fell below 50% 759 | -10/Materials | Lost 6 parts (2p2n2w) 833 | -10/Materials | Core integrity fell below 20% 842 | -10/Materials | Destroyed by G-47 Trooper with Particle Gun Last Messages --------------- 00782_ Extracted 50 matter. 00782_ Acquired 21 matter. 00784_ Acquired Lgt. Ion Engine. 00796_ System corrupted: Matter fused (-9). 00800_ K-01 Serf collects debris. 00800_ R-06 Scavenger collects Wheel. 00819_ Slammed into G-47 Trooper. 00821_ Kicked G-47 Trooper out of the way. 00822_ Critical hit (Burn: +37). 00822_ Kicked G-47 Trooper. 00823_ Kicked G-47 Trooper out of the way. 00825_ Kicked G-47 Trooper. 00828_ Assault Rifle destroyed. 00828_ Kicked G-47 Trooper. 00829_ Aluminum Leg destroyed. 00830_ Slammed into G-47 Trooper. 00830_ Visual Processing Unit broken. 00830_ Destabilizing: Short circuit. 00831_ Slammed into G-47 Trooper. 00833_ Slammed into G-34 Mercenary. Map ----- +----------------------------------------------------+ | ??????????????????????????????# #??????##### | | ??????????????????????????????# """ #??????# | | ??????????????????????????????# """ #??????#""" | | ??????????????????????????????# "?" #??????#""" | | ??????????????????????????????# ? #??????#""" | | ??????????????????????????????? ?? #??????#""" | | ??????????????????????????????? ??? #??????#""" | | ????????????????????????????????????? ???????# | | ?????????????????????????????????????????????#""" | | ?????????????????????????????????????????????#""" | | ?????????????????????????????????????????????#""" | | ?????????????????????????????????????????????#""" | | ?????????????????????????????????????????????#""" | | ?????????????????????????????????????????????# | | ?????????????????????????????????????????????##### | | ????????????????????????????????????????????????# | | ????????????????????????????????????????????????# | | ??????????????????????????????????############### | | ?????????????????????????????????# = ## | | ?????????????????????????????????# ## | | ?????????????????????????????????# """"" """"" ## | | ?????????????????????????????????# """"" """"" ## | | ?????????????????????????????????# """"" """"" ## | | ?????????#####[ ????????????????# ## | | ?????????+ ###################+####+#### | | ?????????????# ^ g@ g k g m | | ?????????????# ####################### | | ??????????????????????????????????????###+#######/ | | ??????????????????????????????????????????????? | | ?????????????????????????????????????????????? | | ????????????????????????????????????????????? """ | | ???????????????????????????????????????????? """" | | ??????????????????????????????????????????? """ | | ??????????????????????????????????????????# | | ??????????????????????????????????????????######## | | | | | | | | | | | | | | | | | | | | | | | | | | | | | | | +----------------------------------------------------+ Best States ------------- Heat Dissipation 25 Energy Generation 10 Energy Capacity 250 Matter Stores 300 Matter Capacity 300 Sight Range 18 Terrain Scan Density 10 Power Shielding 33 Evasion (%) 50 Recoil Reduction 2 Item Schematics ----------------- None Robot Schematics ------------------ None Fabricated ------------ Nothing Repaired ---------- Nothing Studied --------- None Alien Tech Used ----------------- None Achievements -------------- Spot Them First Challenges ------------ None Game ------ Seed CoreSeismicBay Manual? 0 Play Time 00:13:06 Cumulative 10.6 hours Start 2026.02.17 @ 18:59:46 End 2026.02.17 @ 19:13:56 Sessions 1 Manual Loads 0 Difficulty Rogue Special Mode None Game No. 16 Rogue 16 Adventurer 0 Explorer 0 Win Type - Total 0 Types 0/0/0/0/0/0/0/0/0/0 Lore% 14 Gallery% 15 Achievement% 14 Wizard Run 0 Options --------- Layout 1 ASCII 0 Keyboard 0 Movement Numpad Keybinds 0 Fullscreen 2 Font 24/Smallcaps Map View 50x35 Zoom Use 0% Tactical HUD 1 Map Filters NONE Filters NONE Steam 1 RUN: e1a9315b-28ad-4f40-a8fb-98424ce3026d